bitfinex-derivatives/quotes_ETHF0:USTF0_20250316
["timestamp","ask_amount","ask_price","bid_price","bid_amount"]
[1742084058077,3.1226,1940.0,1939.9,5.54786]
[1742084058474,2.0917,1940.0,1939.9,5.54786]
[1742084058981,2.0917,1940.0,1939.9,2.34006]
[1742084059774,3.1226,1940.0,1939.9,2.34006]
[1742084061473,2.0917,1940.0,1939.9,2.34006]
[1742084061668,3.1226,1940.0,1939.9,2.34006]
[1742084062274,2.0917,1940.0,1939.9,2.34006]
[1742084062472,3.1226,1940.0,1939.9,2.34006]
[1742084062677,2.0917,1940.0,1939.9,2.34006]
[1742084062879,3.1226,1940.0,1939.9,2.34006]
[1742084063081,2.0917,1940.0,1939.9,2.34006]
[1742084063280,3.1226,1940.0,1939.9,2.34006]
[1742084064179,2.0917,1940.0,1939.9,2.34006]
[1742084064482,6.30316,1940.3,1940.1,1.0308]
[1742084064681,1.68266,1940.3,1940.2,2.4405]
[1742084065379,1.68266,1940.3,1940.2,1.4097]
[1742084065879,1.68266,1940.3,1940.2,2.0914]
[1742084066089,1.03076,1940.3,1940.2,2.0914]
[1742084066276,1.03074,1940.3,1940.2,2.0914]
[1742084066580,4.23854,1940.3,1940.2,2.0914]
[1742084066776,4.23854,1940.3,1940.2,1.4097]
[1742084067280,1.03085,1940.1,1940.0,1.71256]
[1742084068477,1.3932,1940.2,1939.8,0.00773674]
[1742084068478,4.6922,1940.2,1939.8,0.00773674]
[1742084068679,1.03096,1939.9,1939.8,1.72599674]
[1742084068879,1.03096,1939.9,1939.8,3.06949674]
[1742084069682,1.03096,1939.9,1939.8,1.35123674]
[1742084069978,1.03096,1939.9,1939.8,0.00773674]
[1742084070175,1.03096,1939.9,1939.8,1.35123674]
[1742084070879,1.03096,1939.9,1939.8,2.38224674]
[1742084071184,1.03096,1939.9,1939.8,1.35123674]
[1742084073085,1.03096,1939.9,1939.8,2.38224674]
[1742084073286,1.03096,1939.9,1939.8,1.35123674]
[1742084073474,1.03096,1939.9,1939.8,2.38224674]
[1742084074186,1.03096,1939.9,1939.8,1.35123674]
[1742084074886,1.03096,1939.9,1939.8,2.38224674]
[1742084075773,1.03096,1939.9,1939.8,1.35123674]
[1742084076281,1.03096,1939.9,1939.8,2.38224674]
[1742084076483,1.03096,1939.9,1939.8,1.35123674]
[1742084079782,5.36656,1939.9,1939.8,1.35123674]
[1742084080785,6.72536,1939.9,1939.8,0.00773674]
[1742084081791,9.93316,1939.9,1939.8,0.00773674]
[1742084082386,11.28056,1939.9,1939.8,0.00773674]
[1742084082889,1.03106,1939.7,1939.6,1.3185]
[1742084084281,2.42936,1939.7,1939.6,2.34961]
[1742084084485,1.3983,1939.7,1939.6,2.34961]
[1742084084881,2.42936,1939.7,1939.6,2.34961]
[1742084088182,1.3983,1939.7,1939.6,2.34961]
[1742084088593,2.42936,1939.7,1939.6,2.34961]
[1742084089191,1.3983,1939.7,1939.6,2.34961]
[1742084092779,2.42936,1939.7,1939.6,2.34961]
[1742084094996,1.3983,1939.7,1939.6,2.34961]
[1742084095290,2.42936,1939.7,1939.6,2.34961]
[1742084095694,1.3983,1939.7,1939.6,2.34961]
[1742084097001,2.42936,1939.7,1939.6,2.34961]
[1742084097596,1.3983,1939.7,1939.6,2.34961]
[1742084098188,2.42936,1939.7,1939.6,2.34961]
[1742084098590,1.3983,1939.7,1939.6,2.34961]
[1742084100696,0.98642164,1939.8,1939.7,1.03106]
[1742084100902,1.0396,1939.9,1939.8,1.03101]
[1742084101100,1.0396,1939.9,1939.8,1.70041]
[1742084101300,1.0396,1939.9,1939.8,3.05131]
[1742084102797,2.07056,1939.9,1939.8,3.05131]
[1742084103104,2.07056,1939.9,1939.8,2.38191]
[1742084103399,2.07056,1939.9,1939.8,1.3509]
[1742084103610,1.03101,1939.8,1939.7,1.03102]
[1742084103795,2.41101,1939.8,1939.7,2.38192]
[1742084104001,1.38,1939.8,1939.7,2.38192]
[1742084104396,5.36059,1939.9,1939.7,2.38192]
[1742084104397,5.31602164,1939.9,1939.8,1.03101]
[1742084104604,5.31602164,1939.9,1939.8,3.09521]
[1742084104907,1.0396,1939.9,1939.8,3.09521]
[1742084106101,1.0396,1939.9,1939.8,2.43661]
[1742084106302,2.3936,1939.9,1939.8,2.43661]
[1742084106501,3.42456,1939.9,1939.8,1.4056]
[1742084106696,1.03101,1939.8,1939.7,9.91599326]
[1742084106896,1.03111,1939.6,1939.5,3.21553674]
[1742084107095,1.03111,1939.6,1939.5,1.03890674]
[1742084107305,1.03111,1939.6,1939.5,0.00773674]
[1742084108105,1.0311,1939.7,1939.5,0.00773674]
[1742084108311,2.3936,1939.7,1939.6,1.03111]
[1742084108798,1.03111,1939.6,1939.5,2.38736674]
[1742084109000,3.78111,1939.6,1939.5,2.38736674]
[1742084109200,3.78111,1939.6,1939.5,1.35623674]
[1742084109400,3.78111,1939.6,1939.5,2.38740674]
[1742084109601,3.78111,1939.6,1939.5,1.35623674]
[1742084109805,3.78111,1939.6,1939.5,2.38740674]
[1742084110408,2.75,1939.6,1939.5,2.38740674]
[1742084110602,3.78111,1939.6,1939.5,2.38740674]
[1742084111206,2.75,1939.6,1939.5,2.38740674]
[1742084112108,3.78111,1939.6,1939.5,2.38740674]
[1742084112712,3.78111,1939.6,1939.5,1.35623674]
[1742084112904,3.78111,1939.6,1939.5,2.38740674]
[1742084113811,3.78111,1939.6,1939.5,1.35623674]
[1742084114610,3.78111,1939.6,1939.5,2.38740674]
[1742084115608,3.78111,1939.6,1939.5,1.35623674]
[1742084117216,3.78111,1939.6,1939.5,2.38740674]
[1742084120008,3.78111,1939.6,1939.5,1.35623674]
[1742084120209,3.78111,1939.6,1939.5,2.38740674]
[1742084120717,3.78111,1939.6,1939.5,1.35623674]
[1742084121314,3.78111,1939.6,1939.5,2.38740674]
[1742084122505,4.76753164,1939.6,1939.5,2.38740674]
[1742084124016,4.76753164,1939.6,1939.5,1.35623674]
[1742084124516,4.76753164,1939.6,1939.5,2.38740674]
[1742084124907,3.78111,1939.6,1939.5,1.35623674]
[1742084125111,1.03127,1939.4,1939.3,1.03127]
[1742084125312,1.03127,1939.4,1939.3,2.34557]
[1742084126018,1.03127,1939.4,1939.3,1.3143]
[1742084126215,1.03127,1939.4,1939.3,2.34557]
[1742084126920,1.03127,1939.4,1939.3,2.34557]
[1742084130609,1.03127,1939.4,1939.3,1.3143]
[1742084130818,1.03127,1939.3,1939.2,1.43603674]
[1742084131013,1.69057,1939.3,1939.2,1.43603674]
[1742084131224,1.69057,1939.3,1939.2,2.46736674]
[1742084131523,1.69057,1939.3,1939.2,1.43603674]
[1742084131725,3.72877,1939.3,1939.2,1.43603674]
[1742084132119,1.03138,1939.1,1938.9,14.15523326]
[1742084132319,1.03138,1939.1,1939.0,1.3986]
[1742084132522,1.03151,1938.9,1938.8,1.03153]
[1742084133421,1.3979,1939.0,1938.8,1.03153]
[1742084133726,1.03154,1938.8,1938.7,4.94151674]
[1742084133926,1.03153,1938.9,1938.8,1.03154]
[1742084134125,1.03153,1938.9,1938.8,2.43014]
[1742084134325,1.03149,1938.9,1938.8,1.3986]
[1742084134725,1.03149,1938.9,1938.8,2.43013]
[1742084134924,1.03154,1938.8,1938.7,3.21553674]
[1742084135121,4.32254,1938.8,1938.7,1.03932674]
[1742084135421,4.32254,1938.8,1938.7,0.00773674]
[1742084136823,3.291,1938.8,1938.7,1.03932674]
[1742084137630,4.32254,1938.8,1938.7,1.03932674]
[1742084137820,3.291,1938.8,1938.7,1.03932674]
[1742084138622,4.32254,1938.8,1938.7,1.03932674]
[1742084139721,4.32254,1938.8,1938.7,0.00773674]
[1742084140326,4.32254,1938.8,1938.7,2.38482674]
[1742084140728,3.291,1938.8,1938.7,2.38482674]
[1742084141930,4.32254,1938.8,1938.7,2.38482674]
[1742084142234,3.291,1938.8,1938.7,2.38482674]
[1742084142431,4.32254,1938.8,1938.7,2.38482674]
[1742084142635,3.291,1938.8,1938.7,2.38482674]
[1742084144230,1.3979,1939.0,1938.9,1.03149]
[1742084144436,4.3388,1939.1,1939.0,1.03143]
[1742084145027,1.0388,1939.1,1939.0,1.03143]
[1742084146627,1.0388,1939.1,1939.0,2.43853]
[1742084147224,1.0388,1939.1,1939.0,12.35452326]
[1742084147439,3.21553674,1939.5,1939.4,1.03122]
[1742084147648,4.24670674,1939.5,1939.4,1.03122]
[1742084148539,3.21553674,1939.5,1939.4,1.03122]
[1742084148746,0.00773674,1939.5,1939.4,1.03122]
[1742084148939,1.03890674,1939.5,1939.4,1.03122]
[1742084150645,0.00773674,1939.5,1939.4,1.03122]
[1742084151438,1.03890674,1939.5,1939.4,1.03122]
[1742084152543,2.44550674,1939.5,1939.4,1.03122]
[1742084156547,1.41433674,1939.5,1939.4,1.03122]
[1742084156945,2.44550674,1939.5,1939.4,1.03122]
[1742084157953,1.41433674,1939.5,1939.4,1.03122]
[1742084158650,2.44550674,1939.5,1939.4,1.03122]
[1742084160054,1.03122,1939.4,1939.3,2.47383]
[1742084160248,2.099,1939.4,1939.3,2.47387]
[1742084160443,3.13022,1939.4,1939.3,2.47387]
[1742084160751,1.03127,1939.3,1939.2,1.0313]
[1742084160945,3.16347,1939.3,1939.2,2.389]
[1742084161448,1.03141,1939.1,1939.0,1.03143]
[1742084161647,2.45844,1939.2,1939.1,1.03137]
[1742084161946,1.03134,1939.2,1939.1,1.03137]
[1742084162536,1.03138,1939.1,1938.9,1.3577]
[1742084162754,1.71678,1939.1,1939.0,1.03143]
[1742084163246,4.0071,1939.3,1939.2,1.03133]
[1742084163955,5.03837,1939.3,1939.2,1.03133]
[1742084164145,1.03133,1939.2,1939.1,1.4144]
[1742084164347,4.23913,1939.2,1939.1,1.4144]
[1742084164745,1.03133,1939.2,1939.1,1.4144]
[1742084165645,1.03141,1939.1,1938.9,1.03145]
[1742084165847,0.7022,1939.1,1939.0,1.03143]
[1742084167152,4.0071,1939.3,1938.9,3.91779]
[1742084167353,0.7022,1939.2,1939.1,1.03134]
[1742084169349,0.7022,1939.2,1939.1,1.03138]
[1742084170350,0.7051,1939.3,1939.2,1.03133]
[1742084170656,1.65461302,1939.4,1939.3,1.03127]
[1742084170851,0.6698,1939.4,1939.3,1.03127]
[1742084171451,7.49834976,1939.5,1939.4,1.03122]
[1742084171652,8.52951976,1939.5,1939.4,1.03122]
[1742084171955,7.49834976,1939.5,1939.4,1.03122]
[1742084172157,6.51353674,1939.5,1939.4,1.03122]
[1742084172354,7.92223674,1939.5,1939.4,1.03122]
[1742084172858,8.95340674,1939.5,1939.4,1.03122]
[1742084173056,5.65540674,1939.5,1939.4,1.03122]
[1742084173446,6.64021976,1939.5,1939.4,1.03122]
[1742084174959,5.60904976,1939.5,1939.4,1.03122]
[1742084175460,6.64021976,1939.5,1939.4,1.03122]
[1742084176352,3.43241976,1939.5,1939.4,1.03122]
[1742084176659,2.40124976,1939.5,1939.4,1.03122]
[1742084176958,1.41643674,1939.5,1939.4,1.03122]
[1742084178361,0.00773674,1939.5,1939.4,1.03122]
[1742084178857,0.00773674,1939.5,1939.4,1.74792]
[1742084180162,2.36120674,1939.5,1939.4,1.03122]
[1742084180559,2.36120674,1939.5,1939.3,3.2078]
[1742084180753,2.0213,1939.4,1939.3,3.2078]
[1742084181061,2.0213,1939.4,1939.3,4.23907]
[1742084181855,0.00773674,1939.5,1939.4,1.03122]
[1742084182557,0.00773674,1939.5,1939.4,2.37492]
[1742084184753,1.42303674,1939.5,1939.4,2.37492]
[1742084184952,0.00773674,1939.5,1939.4,2.37492]
[1742084185555,1.42303674,1939.5,1939.4,2.37492]
[1742084186056,0.00773674,1939.5,1939.4,2.37492]
[1742084186664,1.36793674,1939.5,1939.4,2.37492]
[1742084187469,2.07673674,1939.5,1939.4,2.37492]
[1742084187670,1.03122,1939.4,1939.3,1.03123]
[1742084187963,1.3602,1939.4,1939.3,2.34573]
[1742084189765,2.39142,1939.4,1939.3,2.34573]
[1742084190060,1.3602,1939.4,1939.3,2.34573]
[1742084190864,2.39142,1939.4,1939.3,1.03127]
[1742084191060,1.3602,1939.4,1939.1,3.2078]
[1742084191267,1.03133,1939.2,1939.1,4.23917]
[1742084191464,1.03133,1939.2,1939.1,5.60077]
[1742084191662,3.05373,1939.2,1939.1,5.60077]
[1742084192965,1.03141,1939.1,1938.8,0.6931]
[1742084193270,1.72623,1939.0,1938.9,2.35045]
[1742084193666,3.16553,1939.0,1938.8,1.03151]
[1742084193868,0.6695,1938.9,1938.8,2.35051]
[1742084194063,2.1088,1938.9,1938.8,2.35051]
[1742084195366,0.6948,1939.0,1938.9,1.03149]
[1742084195562,2.1341,1939.0,1938.9,2.35049]
[1742084196261,2.1341,1939.0,1938.9,5.55829]
[1742084196466,4.32929,1939.3,1939.2,1.03133]
[1742084196664,7.11069,1939.3,1939.2,1.03133]
[1742084196864,1.03134,1939.2,1939.1,1.03134]
[1742084197064,1.4157,1939.2,1939.1,2.46704]
[1742084199773,0.98647456,1939.3,1939.2,1.03133]
[1742084199967,0.98647456,1939.3,1939.2,2.42573]
[1742084201076,0.00773674,1939.5,1939.4,1.03122]
[1742084201561,1.42693674,1939.5,1939.4,1.03122]
[1742084201771,1.42693674,1939.5,1939.4,2.42562]
[1742084202364,2.11753674,1939.5,1939.4,2.42562]
[1742084203677,0.00773674,1939.5,1939.4,2.42562]
[1742084205370,1.41143674,1939.5,1939.4,2.42562]
[1742084205873,2.44260674,1939.5,1939.4,2.42562]
[1742084206471,1.41143674,1939.5,1939.4,2.42562]
[1742084207069,1.41143674,1939.5,1939.4,1.03122]
[1742084207873,2.44260674,1939.5,1939.4,1.03122]
[1742084208072,1.41143674,1939.5,1939.4,1.03122]
[1742084209575,2.44260674,1939.5,1939.4,1.03122]
[1742084209879,1.41143674,1939.5,1939.4,1.03122]
[1742084210377,2.44260674,1939.5,1939.4,1.03122]
[1742084210563,1.41143674,1939.5,1939.3,1.3503]
[1742084210768,1.03127,1939.3,1939.2,10.94729326]
[1742084211076,2.35536,1939.4,1939.3,1.03127]
[1742084211467,2.35536,1939.4,1939.3,2.45247]
[1742084211773,1.3241,1939.4,1939.3,2.45247]
[1742084212770,2.35532,1939.4,1939.3,2.45247]
[1742084213272,1.3241,1939.4,1939.3,2.45247]
[1742084213878,2.35532,1939.4,1939.3,2.45247]
[1742084214577,2.35532,1939.4,1939.1,3.2078]
[1742084214878,1.9822,1939.3,1939.2,2.46118]
[1742084216468,1.03138,1939.1,1939.0,10.94740326]
[1742084216674,1.03138,1939.1,1939.0,12.37730326]
[1742084217375,1.3079,1939.2,1939.0,12.37730326]
[1742084217376,2.33926,1939.2,1939.0,12.37730326]
[1742084217977,1.03136,1939.2,1939.1,1.3188]
[1742084218680,1.03136,1939.2,1939.0,10.94740326]
[1742084218681,3.296,1939.2,1938.9,4.23926]
[1742084218878,1.03143,1939.0,1938.9,5.55806]
[1742084219077,1.03142,1939.1,1938.9,5.55806]
[1742084219478,1.03142,1939.1,1939.0,1.3188]
[1742084220576,1.03143,1939.0,1938.9,4.23925]
[1742084221781,1.03143,1939.0,1938.9,3.2078]
[1742084222083,1.03147,1939.0,1938.8,2.3697]
[1742084222481,0.98647456,1939.1,1938.9,1.03148]
[1742084222681,0.98647456,1939.1,1938.8,2.36972]
[1742084222891,1.03145,1939.0,1938.9,1.03148]
[1742084223083,1.03145,1939.0,1938.9,1.3382]
[1742084223783,10.06860456,1939.2,1938.9,1.03148]
[1742084223984,1.03145,1939.0,1938.8,1.3928]
[1742084224188,1.03145,1939.0,1938.9,1.03149]
[1742084224583,3.2078,1939.0,1938.7,0.00773674]
[1742084224889,4.32652,1938.9,1938.8,1.03154]
[1742084225286,4.32652,1938.9,1938.7,2.43209674]
[1742084225680,1.03154,1938.8,1938.7,1.40053674]
[1742084225875,4.23934,1938.8,1938.7,0.00773674]
[1742084226080,1.03154,1938.8,1938.7,0.00773674]
[1742084226288,1.03154,1938.8,1938.7,1.03932674]
[1742084226887,1.03154,1938.8,1938.7,0.00773674]
[1742084228392,1.03154,1938.8,1938.7,1.39793674]
[1742084228584,1.71834,1938.8,1938.7,1.39793674]
[1742084229491,0.6868,1938.8,1938.7,2.42952674]
[1742084230694,1.3496,1938.8,1938.7,2.42952674]
[1742084231090,2.38114,1938.8,1938.7,2.42952674]
[1742084231692,1.3496,1938.8,1938.7,2.42952674]
[1742084232392,2.7773,1938.8,1938.7,2.42952674]
[1742084234986,3.80884,1938.8,1938.7,2.42952674]
[1742084235684,3.2078,1939.2,1938.7,2.42952674]
[1742084235890,1.3444,1939.0,1938.9,1.03149]
[1742084236089,1.3444,1939.0,1938.9,1.71099]
[1742084236588,4.6797,1939.1,1939.0,1.03143]
[1742084236792,4.06866891,1939.4,1939.2,1.03133]
[1742084237092,5.3455,1939.3,1939.2,1.03133]
[1742084237699,6.3310803,1939.3,1939.2,1.03133]
[1742084237894,6.3310803,1939.3,1938.9,0.6795]
[1742084238096,1.03138,1939.1,1939.0,1.03141]
[1742084238396,2.37577,1939.2,1939.1,1.03138]
[1742084238591,2.37577,1939.2,1939.0,1.03139]
[1742084238788,1.3094,1939.1,1939.0,1.03139]
[1742084239983,2.0136,1939.1,1939.0,1.03139]
[1742084243294,3.04498,1939.1,1939.0,1.03139]
[1742084243799,1.03143,1939.0,1938.9,1.03146]
[1742084243991,3.12543,1939.0,1938.9,1.03146]
[1742084244288,3.12543,1939.0,1938.7,14.87548]
[1742084244289,1.03149,1938.9,1938.7,14.87548]
[1742084244498,1.03154,1938.8,1938.7,14.1631]
[1742084244699,1.68514,1938.8,1938.7,10.9553]
[1742084245094,3.07674,1938.8,1938.7,10.9553]
[1742084246196,2.0452,1938.8,1938.7,10.9553]
[1742084246594,5.13949964,1938.9,1938.8,1.03154]
[1742084246789,5.6701803,1938.9,1938.8,1.73724]
[1742084246990,6.53109964,1938.9,1938.8,1.73724]
[1742084247196,6.7016703,1938.9,1938.8,1.73724]
[1742084247486,6.53109964,1938.9,1938.8,1.73724]
[1742084247993,5.6701803,1938.9,1938.8,1.73724]
[1742084248290,4.6846,1938.9,1938.8,1.73724]
[1742084248686,5.71609,1938.9,1938.8,1.73724]
[1742084248890,4.6846,1938.9,1938.8,1.73724]
[1742084251187,5.71609,1938.9,1938.8,1.73724]
[1742084251400,5.71609,1938.9,1938.8,1.03154]
[1742084252401,5.71609,1938.9,1938.8,2.34964]
[1742084253506,4.6846,1938.9,1938.8,2.34964]
[1742084255505,5.71609,1938.9,1938.8,2.34964]
[1742084255806,2.42309,1938.9,1938.8,2.34964]
[1742084255997,1.3916,1938.9,1938.8,2.34964]
[1742084256810,1.3916,1938.9,1938.8,1.3181]
[1742084257008,2.42309,1938.9,1938.8,1.3181]
[1742084257300,1.03154,1938.8,1938.7,0.00773674]
[1742084257505,6.44294,1938.8,1938.7,0.00773674]
[1742084257896,6.44294,1938.8,1938.7,1.03932674]
[1742084258105,5.4114,1938.8,1938.7,1.03932674]
[1742084259608,6.44294,1938.8,1938.7,1.03932674]
[1742084261210,5.4114,1938.8,1938.7,1.03932674]
[1742084261405,2.1174,1938.8,1938.7,1.03932674]
[1742084263409,1.4134,1938.8,1938.7,1.03932674]
[1742084263613,1.4134,1938.8,1938.7,1.76012674]
[1742084263815,0.9855803,1938.9,1938.8,1.03154]
[1742084264112,2.3034803,1938.9,1938.8,2.39264]
[1742084264310,1.3179,1938.9,1938.8,2.39264]
[1742084269112,2.34939,1938.9,1938.8,1.3611]
[1742084269809,2.34939,1938.9,1938.8,2.39264]
[1742084270111,2.34939,1938.9,1938.8,1.3611]
[1742084270509,2.34939,1938.9,1938.8,2.39264]
[1742084273824,2.34939,1938.9,1938.8,1.3611]
[1742084274031,1.03154,1938.8,1938.7,0.00773674]
[1742084274239,3.11284,1938.8,1938.7,0.00773674]
[1742084274722,3.11284,1938.8,1938.3,10.94778326]
[1742084274723,2.57905,1938.7,1938.3,10.94778326]
[1742084274934,1.03174,1938.5,1938.4,1.03175]
[1742084275129,3.29,1938.5,1938.4,2.39335]
[1742084275524,5.2969,1938.5,1938.4,2.39335]
[1742084276027,1.3156,1938.5,1938.4,2.39335]
[1742084276733,0.9855803,1938.6,1938.5,1.0317]
[1742084277022,0.9855803,1938.6,1938.5,2.3933]
[1742084277023,2.3011803,1938.6,1938.5,2.3933]
[1742084277232,1.3156,1938.6,1938.5,2.3933]
[1742084277430,1.6774803,1938.7,1938.6,1.03165]
[1742084277725,2.0075,1938.7,1938.6,2.39325]
[1742084279627,3.03909,1938.7,1938.6,1.3616]
[1742084279829,1.03165,1938.6,1938.5,1.03167]
[1742084280030,2.39045,1938.6,1938.5,1.3576]
[1742084280225,2.39048,1938.6,1938.5,1.0317]
[1742084280432,2.39048,1938.6,1938.4,12.30530326]
[1742084280732,1.03168,1938.6,1938.5,1.3576]
[1742084283234,1.0317,1938.5,1938.4,11.35809326]
[1742084283420,1.03168,1938.6,1938.4,12.38984326]
[1742084283630,1.03168,1938.6,1938.5,1.4421]
[1742084284024,4.32768,1938.6,1938.5,1.4421]
[1742084284529,5.1905683,1938.6,1938.5,1.4421]
[1742084284830,1.03171,1938.5,1938.4,1.03175]
[1742084287038,1.0317,1938.5,1938.4,1.03175]
[1742084287328,5.1444686,1938.6,1938.4,1.03175]
[1742084287533,5.3132303,1938.6,1938.5,1.3191]
[1742084287734,6.1761186,1938.6,1938.5,1.3191]
[1742084288135,5.1444686,1938.6,1938.3,1.03952674]
[1742084288337,1.03174,1938.5,1938.4,1.3191]
[1742084288537,4.23954,1938.5,1938.4,1.3191]
[1742084289136,6.1761486,1938.6,1938.4,2.35085]
[1742084289333,6.1761586,1938.6,1938.4,2.35085]
[1742084289536,6.1761186,1938.6,1938.5,1.3191]
[1742084290935,1.8484686,1938.6,1938.5,2.3508]
[1742084291133,0.9855803,1938.6,1938.5,2.3508]
[1742084291734,4.8852803,1938.7,1938.5,1.3191]
[1742084292037,4.8852803,1938.7,1938.6,2.45695]
[1742084292230,3.8997,1938.7,1938.6,2.45695]
[1742084292437,5.2989,1938.7,1938.6,2.45695]
[1742084292629,7.3160703,1938.7,1938.6,1.4253]
[1742084292824,6.2844803,1938.7,1938.6,2.45695]
[1742084293028,7.1463144,1938.7,1938.6,2.45695]
[1742084293231,3.0766803,1938.7,1938.6,2.45695]
[1742084293541,4.9701263,1938.7,1938.6,1.4253]
[1742084294038,1.03167,1938.6,1938.4,1.03171]
[1742084294336,5.68727,1938.6,1938.5,1.4228]
[1742084300639,6.34527,1938.6,1938.5,1.4228]
[1742084301233,6.34527,1938.6,1938.5,2.4545]
[1742084301434,6.34527,1938.6,1938.5,1.0317]
[1742084302348,1.4478,1938.6,1938.5,1.0317]
[1742084302533,1.4478,1938.6,1938.5,1.7473]
[1742084304239,1.4478,1938.6,1938.5,2.4178]
[1742084304440,2.5393363,1938.7,1938.6,1.03165]
[1742084304741,3.8721363,1938.7,1938.6,2.42125]
[1742084308836,3.0102803,1938.7,1938.6,2.42125]
[1742084309551,3.87355437,1938.7,1938.6,2.42125]
[1742084309746,3.0102803,1938.7,1938.6,2.42125]
[1742084310049,2.0247,1938.7,1938.6,2.42125]
[1742084311646,1.3328,1938.7,1938.6,2.42125]
[1742084312438,2.36439,1938.7,1938.6,2.42125]
[1742084312638,1.3328,1938.7,1938.6,2.42125]
[1742084312842,2.3183803,1938.7,1938.6,2.42125]
[1742084313545,1.3328,1938.7,1938.6,2.42125]
[1742084315948,2.52615437,1938.9,1938.8,1.03154]
[1742084316264,2.0608,1938.9,1938.8,1.03154]
[1742084316734,2.92407407,1938.9,1938.8,1.03154]
[1742084316939,2.0608,1938.9,1938.8,1.03154]
[1742084317538,4.1933803,1939.0,1938.9,1.03149]
[1742084317740,5.6284803,1939.0,1938.9,2.47699]
[1742084318139,4.6429,1939.0,1938.9,2.47699]
[1742084318446,1.4351,1939.0,1938.9,2.47699]
[1742084319334,0.9855803,1939.1,1939.0,1.03143]
[1742084319545,2.4206803,1939.1,1939.0,2.47693]
[1742084319946,1.4351,1939.1,1939.0,2.47693]
[1742084321545,3.13408,1939.1,1939.0,1.4455]
[1742084321745,3.13408,1939.1,1939.0,2.47693]
[1742084321939,3.13408,1939.1,1939.0,1.4455]
[1742084322141,1.03143,1939.0,1938.9,1.03144]
[1742084322344,2.0891,1939.0,1938.9,1.03144]
[1742084322547,2.0891,1939.0,1938.9,2.37554]
[1742084322848,2.0891,1939.0,1938.9,1.3441]
[1742084323048,3.12053,1939.0,1938.8,1.03152]
[1742084323246,1.3944,1938.9,1938.7,1.3441]
[1742084323449,0.6676,1938.8,1938.7,2.37569]
[1742084323635,0.6676,1938.8,1938.7,1.3441]
[1742084323836,1.69914,1938.8,1938.7,1.03159]
[1742084324040,0.6676,1938.8,1938.7,1.03159]
[1742084324241,0.6676,1938.8,1938.7,2.35569]
[1742084324541,2.1122,1938.8,1938.7,2.35569]
[1742084325353,0.6947,1939.0,1938.9,1.03149]
[1742084325554,1.385,1939.0,1938.9,1.03149]
[1742084326748,2.7139,1939.0,1938.9,1.03149]
[1742084327049,1.03149,1938.9,1938.8,1.3241]
[1742084327243,1.3289,1938.9,1938.8,2.35564]
[1742084327445,2.36039,1938.9,1938.8,2.35564]
[1742084327644,2.36039,1938.9,1938.8,1.3241]
[1742084328053,1.03155,1938.8,1938.6,13.12379326]
[1742084328243,1.3381,1938.7,1938.6,14.15542326]
[1742084328657,2.667,1938.7,1938.6,4.23943]
[1742084332246,3.69859,1938.7,1938.6,4.23943]
[1742084333046,2.667,1938.7,1938.6,4.23943]
[1742084336652,1.9828,1938.7,1938.6,4.23943]
[1742084336857,1.9828,1938.7,1938.6,4.89573]
[1742084337263,1.9828,1938.7,1938.6,6.20263]
[1742084339561,1.9828,1938.7,1938.6,2.33853]
[1742084340554,1.9828,1938.7,1938.6,1.03163]
[1742084340555,3.01439,1938.7,1938.6,1.03163]
[1742084341353,1.9828,1938.7,1938.6,1.03163]
[1742084342263,3.01439,1938.7,1938.6,1.03163]
[1742084342452,1.03165,1938.6,1938.5,2.45607]
[1742084342657,3.12835,1938.6,1938.5,1.4244]
[1742084342857,2.0967,1938.6,1938.5,2.4561]
[1742084343559,2.0967,1938.6,1938.5,1.0317]
[1742084343751,2.0967,1938.6,1938.5,2.4191]
[1742084344965,3.12835,1938.6,1938.5,2.4191]
[1742084345164,2.0967,1938.6,1938.5,2.4191]
[1742084345763,3.12835,1938.6,1938.5,2.4191]
[1742084346367,4.1139303,1938.6,1938.5,2.4191]
[1742084346957,4.1139303,1938.6,1938.3,9.92373]
[1742084346958,4.1139303,1938.6,1938.4,1.03172]
[1742084347165,1.3753,1938.5,1938.4,2.41822]
[1742084349672,2.407,1938.5,1938.4,2.41822]
[1742084349870,1.3753,1938.5,1938.4,2.41822]
[1742084350187,2.407,1938.5,1938.4,2.41822]
[1742084350467,1.3753,1938.5,1938.4,2.41822]
[1742084350668,2.407,1938.5,1938.4,2.41822]
[1742084351065,2.407,1938.5,1938.4,1.3865]
[1742084352768,2.407,1938.5,1938.4,2.41825]
[1742084353872,2.407,1938.5,1938.4,1.3865]
[1742084354073,2.407,1938.5,1938.4,2.41825]
[1742084354575,2.407,1938.5,1938.4,1.3865]
[1742084354769,1.03175,1938.4,1938.3,1.03950674]
[1742084354971,2.0554,1938.4,1938.3,2.43970674]
[1742084362384,1.03171,1938.5,1938.4,1.0317]
[1742084362581,2.36921,1938.5,1938.4,3.0937]
[1742084363584,3.53708158,1938.6,1938.5,1.0317]
[1742084363787,0.9855803,1938.6,1938.5,2.4682]
[1742084364288,1.84790158,1938.8,1938.7,1.03159]
[1742084364484,0.9855803,1938.8,1938.7,1.03159]
[1742084365093,0.9855803,1938.8,1938.7,3.15989]
[1742084365288,1.4306,1938.9,1938.8,1.03154]
[1742084365490,1.4306,1938.9,1938.8,2.46804]
[1742084367683,5.71476275,1939.0,1938.9,1.03149]
[1742084367887,4.8524803,1939.0,1938.9,2.45179]
[1742084368184,5.71476275,1939.0,1938.9,2.45179]
[1742084368692,0.9855803,1939.0,1938.9,2.45179]
[1742084368884,1.3985,1939.1,1939.0,1.03143]
[1742084369191,2.0169603,1939.1,1939.0,11.33629326]
[1742084369384,4.1290603,1939.1,1939.0,9.91599326]
[1742084369580,4.21421163,1939.1,1939.0,9.91599326]
[1742084369786,3.22863133,1939.1,1939.0,9.91599326]